[Event "January 9 Early 2024"]
[Site "https://www.chess.com"]
[Date "2024.01.11"]
[Round "11"]
[White "Tarnowska, Aleksandra"]
[Black "Skaric, Djuro"]
[Result "0-1"]
[Board "74"]
[TimeControl "180+1"]
[WhiteFideId "1180967"]
[BlackFideId "934569"]
[WhiteElo "2178"]
[BlackElo "2295"]
[WhiteTeam "POL"]
[BlackTeam "SRB"]
[WhiteClock "0:00:07"]
[BlackClock "0:00:40"]

1. e4 {[%clk 0:02:57]}  d6 {[%clk 0:02:57]} 2. d4 {[%clk 0:02:56]}  g6 {[%clk 0:02:57]} 3. Nc3 {[%clk 0:02:56]}  Bg7 {[%clk 0:02:57]} 4. Be3 {[%clk 0:02:57]}  Nf6 {[%clk 0:02:58]} 5. Qd2 {[%clk 0:02:57]}  O-O {[%clk 0:02:58]} 6. f3 {[%clk 0:02:57]}  Nc6 {[%clk 0:02:59]} 7. g4 {[%clk 0:02:51]}  e5 {[%clk 0:02:57]} 8. d5 {[%clk 0:02:44]}  Ne7 {[%clk 0:02:56]} 9. h4 {[%clk 0:02:43]}  h5 {[%clk 0:02:56]} 10. gxh5 {[%clk 0:02:38]}  Nxh5 {[%clk 0:02:55]} 11. O-O-O {[%clk 0:02:31]}  a6 {[%clk 0:02:55]} 12. Nh3 {[%clk 0:02:27]}  b5 {[%clk 0:02:52]} 13. Bh6 {[%clk 0:02:24]}  f5 {[%clk 0:02:52]} 14. Bxg7 {[%clk 0:02:23]}  Kxg7 {[%clk 0:02:51]} 15. Rg1 {[%clk 0:02:06]}  f4 {[%clk 0:02:50]} 16. Ne2 {[%clk 0:01:57]}  Rh8 {[%clk 0:02:49]} 17. Ng5 {[%clk 0:01:55]}  Qf8 {[%clk 0:02:45]} 18. Qc3 {[%clk 0:01:54]}  Ra7 {[%clk 0:02:44]} 19. Bh3 {[%clk 0:01:48]}  Bxh3 {[%clk 0:02:40]} 20. Nxh3 {[%clk 0:01:49]}  Ng3 {[%clk 0:02:37]} 21. Nxg3 {[%clk 0:01:41]}  fxg3 {[%clk 0:02:35]} 22. Rxg3 {[%clk 0:01:42]}  Rxh4 {[%clk 0:02:34]} 23. Rdg1 {[%clk 0:01:42]}  Qf6 {[%clk 0:02:30]} 24. Ng5 {[%clk 0:01:40]}  c5 {[%clk 0:02:04]} 25. Ne6+ {[%clk 0:01:16]}  Kh8 {[%clk 0:01:55]} 26. Qa5 {[%clk 0:01:09]}  Ra8 {[%clk 0:01:46]} 27. Qc7 {[%clk 0:00:58]}  Rg8 {[%clk 0:01:45]} 28. Qxd6 {[%clk 0:00:55]}  Rh2 {[%clk 0:01:28]} 29. Qd7 {[%clk 0:00:27]}  g5 {[%clk 0:01:29]} 30. Nxg5 {[%clk 0:00:19]}  Qf4+ {[%clk 0:01:16]} 31. Kb1 {[%clk 0:00:18]}  Qxg3 {[%clk 0:00:40]} 32. Nf7+ {[%clk 0:00:12]}  Kh7 {[%clk 0:00:40]} 33. Qf5+ {[%clk 0:00:07]}  Nxf5 {[%clk 0:00:40]} 0-1

[Event "January 9 Early 2024"]
[Site "https://www.chess.com"]
[Date "2024.01.11"]
[Round "11"]
[White "Kantans, Toms"]
[Black "Hungaski, Robert"]
[Result "0-1"]
[Board "77"]
[TimeControl "180+1"]
[WhiteFideId "11602945"]
[BlackFideId "2021030"]
[WhiteElo "2634"]
[BlackElo "2494"]
[WhiteTeam "LAT"]
[BlackTeam "USA"]
[WhiteClock "0:00:02"]
[BlackClock "0:00:12"]

1. e4 {[%clk 0:03:00]}  e5 {[%clk 0:02:59]} 2. Nf3 {[%clk 0:03:00]}  Nc6 {[%clk 0:03:00]} 3. d4 {[%clk 0:02:59]}  exd4 {[%clk 0:02:58]} 4. Nxd4 {[%clk 0:03:00]}  Qh4 {[%clk 0:02:55]} 5. Nb5 {[%clk 0:02:56]}  Bb4+ {[%clk 0:02:51]} 6. c3 {[%clk 0:02:42]}  Ba5 {[%clk 0:02:43]} 7. Bd3 {[%clk 0:02:41]}  a6 {[%clk 0:02:39]} 8. N5a3 {[%clk 0:02:41]}  Bb6 {[%clk 0:02:34]} 9. O-O {[%clk 0:02:39]}  Nf6 {[%clk 0:02:29]} 10. h3 {[%clk 0:02:31]}  Ne5 {[%clk 0:01:52]} 11. Bc2 {[%clk 0:01:09]}  d5 {[%clk 0:01:23]} 12. Be3 {[%clk 0:01:05]}  Bxh3 {[%clk 0:00:38]} 13. Bxb6 {[%clk 0:00:40]}  Bxg2 {[%clk 0:00:37]} 14. Kxg2 {[%clk 0:00:35]}  Qg5+ {[%clk 0:00:37]} 15. Kh3 {[%clk 0:00:17]}  Nfg4 {[%clk 0:00:31]} 16. Rh1 {[%clk 0:00:08]}  cxb6 {[%clk 0:00:16]} 17. Qd2 {[%clk 0:00:06]}  Qf6 {[%clk 0:00:13]} 18. Kg3 {[%clk 0:00:04]}  Qf3+ {[%clk 0:00:12]} 19. Kh4 {[%clk 0:00:04]}  Ng6+ {[%clk 0:00:12]} 20. Kh5 {[%clk 0:00:02]}  Nf6+ {[%clk 0:00:11]} 21. Kg5 {[%clk 0:00:02]}  h6+ {[%clk 0:00:12]} 0-1

[Event "January 9 Early 2024"]
[Site "https://www.chess.com"]
[Date "2024.01.11"]
[Round "11"]
[White "Sokolovsky, Yahli"]
[Black "Indjic, Aleksandar"]
[Result "0-1"]
[Board "79"]
[TimeControl "180+1"]
[WhiteFideId "2820242"]
[BlackFideId "911925"]
[WhiteElo "2776"]
[BlackElo "2896"]
[WhiteTeam "ISR"]
[BlackTeam "SRB"]
[WhiteClock "0:00:02"]
[BlackClock "0:01:20"]

1. b3 {[%clk 0:03:00]}  e5 {[%clk 0:02:58]} 2. Bb2 {[%clk 0:03:00]}  Nc6 {[%clk 0:02:57]} 3. e3 {[%clk 0:03:00]}  Nge7 {[%clk 0:02:58]} 4. d4 {[%clk 0:02:56]}  exd4 {[%clk 0:02:54]} 5. exd4 {[%clk 0:02:57]}  d5 {[%clk 0:02:54]} 6. Qd2 {[%clk 0:02:43]}  Nf5 {[%clk 0:02:50]} 7. Nf3 {[%clk 0:02:43]}  Bd6 {[%clk 0:02:48]} 8. Nc3 {[%clk 0:02:40]}  Be6 {[%clk 0:02:47]} 9. O-O-O {[%clk 0:02:37]}  O-O {[%clk 0:02:46]} 10. Nb5 {[%clk 0:02:19]}  Bb4 {[%clk 0:02:44]} 11. Qf4 {[%clk 0:02:19]}  a6 {[%clk 0:02:42]} 12. Nc3 {[%clk 0:02:06]}  Qd6 {[%clk 0:02:42]} 13. Ne2 {[%clk 0:01:59]}  f6 {[%clk 0:02:28]} 14. g3 {[%clk 0:01:38]}  g5 {[%clk 0:02:26]} 15. Qxd6 {[%clk 0:01:36]}  Nxd6 {[%clk 0:02:25]} 16. h4 {[%clk 0:01:24]}  h6 {[%clk 0:02:24]} 17. c3 {[%clk 0:01:16]}  Ba5 {[%clk 0:02:22]} 18. Ba3 {[%clk 0:01:16]}  Ne4 {[%clk 0:02:11]} 19. Bxf8 {[%clk 0:01:15]}  Rxf8 {[%clk 0:02:07]} 20. Rh2 {[%clk 0:00:59]}  Bg4 {[%clk 0:02:05]} 21. Bg2 {[%clk 0:00:36]}  Nxf2 {[%clk 0:02:01]} 22. Rf1 {[%clk 0:00:35]}  Ne4 {[%clk 0:01:59]} 23. b4 {[%clk 0:00:32]}  Bb6 {[%clk 0:01:58]} 24. Kb2 {[%clk 0:00:27]}  Ne7 {[%clk 0:01:50]} 25. Bh3 {[%clk 0:00:25]}  Bxh3 {[%clk 0:01:49]} 26. Rxh3 {[%clk 0:00:26]}  g4 {[%clk 0:01:49]} 27. Rh2 {[%clk 0:00:26]}  gxf3 {[%clk 0:01:48]} 28. Rxf3 {[%clk 0:00:27]}  c6 {[%clk 0:01:46]} 29. Nf4 {[%clk 0:00:27]}  Kf7 {[%clk 0:01:45]} 30. Nd3 {[%clk 0:00:25]}  h5 {[%clk 0:01:42]} 31. Nf4 {[%clk 0:00:22]}  Rh8 {[%clk 0:01:41]} 32. Re2 {[%clk 0:00:18]}  Bc7 {[%clk 0:01:40]} 33. c4 {[%clk 0:00:18]}  Bxf4 {[%clk 0:01:39]} 34. Rxf4 {[%clk 0:00:15]}  Nxg3 {[%clk 0:01:38]} 35. Rg2 {[%clk 0:00:15]}  Ne4 {[%clk 0:01:38]} 36. cxd5 {[%clk 0:00:14]}  cxd5 {[%clk 0:01:38]} 37. Rc2 {[%clk 0:00:15]}  Nc6 {[%clk 0:01:37]} 38. a3 {[%clk 0:00:12]}  Re8 {[%clk 0:01:34]} 39. Rc1 {[%clk 0:00:11]}  Nxd4 {[%clk 0:01:34]} 40. Rd1 {[%clk 0:00:11]}  Ne2 {[%clk 0:01:28]} 41. Rf5 {[%clk 0:00:10]}  N2c3 {[%clk 0:01:28]} 42. Rd3 {[%clk 0:00:08]}  Kg6 {[%clk 0:01:26]} 43. Rf1 {[%clk 0:00:08]}  Rc8 {[%clk 0:01:24]} 44. Rg1+ {[%clk 0:00:06]}  Kf7 {[%clk 0:01:23]} 45. Rf1 {[%clk 0:00:06]}  Ke6 {[%clk 0:01:23]} 46. Kb3 {[%clk 0:00:03]}  b5 {[%clk 0:01:22]} 47. Rc1 {[%clk 0:00:03]}  Ke5 {[%clk 0:01:22]} 48. Rc2 {[%clk 0:00:02]}  d4 {[%clk 0:01:22]} 49. Rc1 {[%clk 0:00:02]}  f5 {[%clk 0:01:21]} 50. Rg1 {[%clk 0:00:02]}  Ne2 {[%clk 0:01:20]} 51. Kb2 {[%clk 0:00:02]}  Nxg1 {[%clk 0:01:20]} 0-1

[Event "January 9 Early 2024"]
[Site "https://www.chess.com"]
[Date "2024.01.11"]
[Round "11"]
[White "Potkin, Vladimir"]
[Black "Finek, Vaclav"]
[Result "1-0"]
[Board "80"]
[TimeControl "180+1"]
[WhiteFideId "4131061"]
[BlackFideId "23718293"]
[WhiteElo "2675"]
[BlackElo "2793"]
[WhiteTeam "RUS"]
[BlackTeam "CZE"]
[WhiteClock "0:00:40"]
[BlackClock "0:00:07"]

1. Nf3 {[%clk 0:03:00]}  Nf6 {[%clk 0:02:58]} 2. c4 {[%clk 0:03:00]}  c6 {[%clk 0:02:58]} 3. Nc3 {[%clk 0:02:59]}  d5 {[%clk 0:02:59]} 4. e3 {[%clk 0:02:59]}  e6 {[%clk 0:02:56]} 5. b3 {[%clk 0:02:59]}  Nbd7 {[%clk 0:02:56]} 6. Bb2 {[%clk 0:03:00]}  Bd6 {[%clk 0:02:57]} 7. Qc2 {[%clk 0:02:59]}  O-O {[%clk 0:02:56]} 8. Be2 {[%clk 0:02:57]}  e5 {[%clk 0:02:55]} 9. cxd5 {[%clk 0:02:54]}  cxd5 {[%clk 0:02:54]} 10. Nb5 {[%clk 0:02:54]}  Qe7 {[%clk 0:02:48]} 11. Nxd6 {[%clk 0:02:52]}  Qxd6 {[%clk 0:02:49]} 12. Rc1 {[%clk 0:02:49]}  Re8 {[%clk 0:02:49]} 13. O-O {[%clk 0:02:47]}  a6 {[%clk 0:02:44]} 14. Qc7 {[%clk 0:02:47]}  Qe6 {[%clk 0:01:48]} 15. Ng5 {[%clk 0:02:45]}  Qf5 {[%clk 0:01:46]} 16. f4 {[%clk 0:02:45]}  exf4 {[%clk 0:01:42]} 17. Qxf4 {[%clk 0:02:44]}  Qxf4 {[%clk 0:01:40]} 18. Rxf4 {[%clk 0:02:45]}  h6 {[%clk 0:01:40]} 19. Nf3 {[%clk 0:02:39]}  Ne4 {[%clk 0:01:37]} 20. Rc7 {[%clk 0:02:18]}  Nd6 {[%clk 0:01:26]} 21. Nd4 {[%clk 0:01:57]}  Ne5 {[%clk 0:01:23]} 22. a4 {[%clk 0:01:41]}  f6 {[%clk 0:00:42]} 23. h4 {[%clk 0:01:31]}  Ne4 {[%clk 0:00:37]} 24. d3 {[%clk 0:01:28]}  Nd6 {[%clk 0:00:29]} 25. Ba3 {[%clk 0:01:26]}  Ndf7 {[%clk 0:00:28]} 26. Bh5 {[%clk 0:01:18]}  g6 {[%clk 0:00:23]} 27. Be2 {[%clk 0:01:15]}  f5 {[%clk 0:00:20]} 28. Bb2 {[%clk 0:00:59]}  h5 {[%clk 0:00:09]} 29. Nf3 {[%clk 0:00:52]}  Nxf3+ {[%clk 0:00:08]} 30. Bxf3 {[%clk 0:00:53]}  Be6 {[%clk 0:00:08]} 31. Rxb7 {[%clk 0:00:49]}  Rac8 {[%clk 0:00:09]} 32. Rfb4 {[%clk 0:00:43]}  Rc2 {[%clk 0:00:08]} 33. Bd4 {[%clk 0:00:43]}  Rd2 {[%clk 0:00:08]} 34. Rb8 {[%clk 0:00:41]}  Kf8 {[%clk 0:00:07]} 35. Bc5+ {[%clk 0:00:40]} 1-0

[Event "January 9 Early 2024"]
[Site "https://www.chess.com"]
[Date "2024.01.11"]
[Round "11"]
[White "De Sousa, Daniel Aguiar"]
[Black "Skiadopoulos, Nikolaos"]
[Result "0-1"]
[Board "81"]
[TimeControl "180+1"]
[WhiteFideId "44736797"]
[BlackFideId "4200772"]
[WhiteElo "2034"]
[BlackElo "1956"]
[WhiteTeam "BRA"]
[BlackTeam "GRE"]
[WhiteClock "0:00:08"]
[BlackClock "0:00:35"]

1. d4 {[%clk 0:02:57]}  Nf6 {[%clk 0:02:52]} 2. Nf3 {[%clk 0:02:56]}  g6 {[%clk 0:02:50]} 3. e3 {[%clk 0:02:54]}  Bg7 {[%clk 0:02:48]} 4. Bd3 {[%clk 0:02:54]}  b6 {[%clk 0:02:48]} 5. Nbd2 {[%clk 0:02:54]}  Ba6 {[%clk 0:02:47]} 6. Bxa6 {[%clk 0:02:50]}  Nxa6 {[%clk 0:02:46]} 7. a3 {[%clk 0:02:48]}  O-O {[%clk 0:02:43]} 8. O-O {[%clk 0:02:48]}  c5 {[%clk 0:02:43]} 9. Qe2 {[%clk 0:02:43]}  Qc8 {[%clk 0:02:41]} 10. b3 {[%clk 0:02:29]}  Qb7 {[%clk 0:02:39]} 11. Bb2 {[%clk 0:02:28]}  cxd4 {[%clk 0:02:39]} 12. exd4 {[%clk 0:02:28]}  Rac8 {[%clk 0:02:38]} 13. c4 {[%clk 0:02:22]}  d5 {[%clk 0:02:35]} 14. Ne5 {[%clk 0:02:10]}  e6 {[%clk 0:02:33]} 15. f4 {[%clk 0:02:09]}  dxc4 {[%clk 0:02:24]} 16. Ndxc4 {[%clk 0:02:06]}  Rfd8 {[%clk 0:02:18]} 17. Rae1 {[%clk 0:01:59]}  Nc7 {[%clk 0:02:15]} 18. g4 {[%clk 0:01:55]}  Ncd5 {[%clk 0:02:09]} 19. f5 {[%clk 0:01:53]}  exf5 {[%clk 0:02:00]} 20. gxf5 {[%clk 0:01:54]}  Re8 {[%clk 0:01:58]} 21. Nd6 {[%clk 0:01:50]}  Qb8 {[%clk 0:01:42]} 22. Nxc8 {[%clk 0:01:47]}  Qxc8 {[%clk 0:01:36]} 23. fxg6 {[%clk 0:01:46]}  hxg6 {[%clk 0:01:35]} 24. Qc4 {[%clk 0:01:28]}  Qe6 {[%clk 0:01:16]} 25. Bc1 {[%clk 0:00:46]}  Qh3 {[%clk 0:00:59]} 26. Bg5 {[%clk 0:00:35]}  Re6 {[%clk 0:00:57]} 27. Qc8+ {[%clk 0:00:24]}  Kh7 {[%clk 0:00:55]} 28. Bxf6 {[%clk 0:00:15]}  Nxf6 {[%clk 0:00:50]} 29. Rxf6 {[%clk 0:00:14]}  Bxf6 {[%clk 0:00:48]} 30. Qf8 {[%clk 0:00:12]}  Re7 {[%clk 0:00:40]} 31. Nxf7 {[%clk 0:00:11]}  Qg4+ {[%clk 0:00:39]} 32. Kf2 {[%clk 0:00:11]}  Bh4+ {[%clk 0:00:37]} 33. Kf1 {[%clk 0:00:11]}  Qf3+ {[%clk 0:00:36]} 34. Kg1 {[%clk 0:00:09]}  Qf2+ {[%clk 0:00:36]} 35. Kh1 {[%clk 0:00:08]}  Rxe1# {[%clk 0:00:35]} 0-1

[Event "January 9 Early 2024"]
[Site "https://www.chess.com"]
[Date "2024.01.11"]
[Round "11"]
[White "Kochiev, Ivan"]
[Black "Wantiez, Fabrice"]
[Result "1-0"]
[Board "82"]
[TimeControl "180+1"]
[WhiteFideId "2917890"]
[BlackFideId "202274"]
[WhiteElo "2592"]
[BlackElo "2431"]
[WhiteTeam "BUL"]
[BlackTeam "BEL"]
[WhiteClock "0:00:13"]
[BlackClock "0:00:20"]

1. e4 {[%clk 0:03:00]}  e5 {[%clk 0:03:00]} 2. Nf3 {[%clk 0:03:01]}  Nc6 {[%clk 0:03:01]} 3. d4 {[%clk 0:02:59]}  exd4 {[%clk 0:03:01]} 4. Bc4 {[%clk 0:03:00]}  g6 {[%clk 0:03:00]} 5. Nxd4 {[%clk 0:02:59]}  Bg7 {[%clk 0:03:00]} 6. Be3 {[%clk 0:03:00]}  d6 {[%clk 0:03:00]} 7. O-O {[%clk 0:03:00]}  Nf6 {[%clk 0:02:59]} 8. Nc3 {[%clk 0:03:00]}  O-O {[%clk 0:02:58]} 9. Re1 {[%clk 0:02:59]}  Ne5 {[%clk 0:02:40]} 10. Bb3 {[%clk 0:02:45]}  c5 {[%clk 0:02:34]} 11. Ndb5 {[%clk 0:01:47]}  c4 {[%clk 0:02:34]} 12. Ba4 {[%clk 0:01:47]}  a6 {[%clk 0:02:35]} 13. Nxd6 {[%clk 0:01:39]}  b5 {[%clk 0:02:35]} 14. Bxb5 {[%clk 0:01:37]}  axb5 {[%clk 0:02:36]} 15. Ncxb5 {[%clk 0:01:38]}  Ba6 {[%clk 0:02:06]} 16. a4 {[%clk 0:01:33]}  Nfd7 {[%clk 0:01:56]} 17. f4 {[%clk 0:01:29]}  Nc6 {[%clk 0:01:49]} 18. e5 {[%clk 0:01:29]}  Bxb5 {[%clk 0:01:35]} 19. axb5 {[%clk 0:01:24]}  Rxa1 {[%clk 0:01:34]} 20. Qxa1 {[%clk 0:01:25]}  Nb4 {[%clk 0:01:34]} 21. Qa4 {[%clk 0:01:23]}  Nd5 {[%clk 0:01:33]} 22. Qxc4 {[%clk 0:01:12]}  Nxe3 {[%clk 0:01:33]} 23. Rxe3 {[%clk 0:01:13]}  Qb6 {[%clk 0:01:32]} 24. Kf2 {[%clk 0:01:05]}  Nc5 {[%clk 0:01:19]} 25. b4 {[%clk 0:00:53]}  Ne6 {[%clk 0:01:19]} 26. g3 {[%clk 0:00:36]}  Rd8 {[%clk 0:01:04]} 27. Kf3 {[%clk 0:00:29]}  Nd4+ {[%clk 0:01:03]} 28. Ke4 {[%clk 0:00:19]}  Ne6 {[%clk 0:00:25]} 29. g4 {[%clk 0:00:19]}  Qb8 {[%clk 0:00:24]} 30. f5 {[%clk 0:00:18]}  Bxe5 {[%clk 0:00:19]} 31. Nxf7 {[%clk 0:00:13]}  Qd6 {[%clk 0:00:20]} 32. Nxd6 {[%clk 0:00:13]} 1-0

[Event "January 9 Early 2024"]
[Site "https://www.chess.com"]
[Date "2024.01.11"]
[Round "11"]
[White "Ronka, Erik"]
[Black "Spichkin, Alexander"]
[Result "1-0"]
[Board "83"]
[TimeControl "180+1"]
[WhiteFideId "505080"]
[BlackFideId "4144074"]
[WhiteElo "2529"]
[BlackElo "2415"]
[WhiteTeam "FIN"]
[BlackTeam "RUS"]
[WhiteClock "0:00:17"]
[BlackClock "0:01:11"]

1. e4 {[%clk 0:03:00]}  e5 {[%clk 0:02:57]} 2. Nf3 {[%clk 0:02:58]}  d5 {[%clk 0:02:57]} 3. d4 {[%clk 0:02:58]}  dxe4 {[%clk 0:02:56]} 4. Nxe5 {[%clk 0:02:58]}  Bd6 {[%clk 0:02:57]} 5. Bc4 {[%clk 0:02:57]}  Bxe5 {[%clk 0:02:56]} 6. Qh5 {[%clk 0:02:58]}  Qe7 {[%clk 0:02:56]} 7. Qxe5 {[%clk 0:02:57]}  Qxe5 {[%clk 0:02:56]} 8. dxe5 {[%clk 0:02:58]}  Nc6 {[%clk 0:02:56]} 9. Bf4 {[%clk 0:02:44]}  Nge7 {[%clk 0:02:54]} 10. Nc3 {[%clk 0:02:43]}  Bf5 {[%clk 0:02:54]} 11. O-O-O {[%clk 0:02:36]}  O-O {[%clk 0:02:52]} 12. Rhe1 {[%clk 0:02:32]}  Ng6 {[%clk 0:02:51]} 13. Bg3 {[%clk 0:02:27]}  Ngxe5 {[%clk 0:02:51]} 14. Bb3 {[%clk 0:02:24]}  a5 {[%clk 0:02:49]} 15. Nxe4 {[%clk 0:02:23]}  Rfe8 {[%clk 0:02:35]} 16. h3 {[%clk 0:02:04]}  a4 {[%clk 0:02:29]} 17. Bd5 {[%clk 0:02:03]}  a3 {[%clk 0:02:24]} 18. b3 {[%clk 0:02:03]}  Nb4 {[%clk 0:02:20]} 19. Nc3 {[%clk 0:01:59]}  Nec6 {[%clk 0:02:14]} 20. Bxc7 {[%clk 0:01:52]}  Bxc2 {[%clk 0:02:09]} 21. Bxc6 {[%clk 0:01:42]}  bxc6 {[%clk 0:02:08]} 22. Rxe8+ {[%clk 0:01:41]}  Rxe8 {[%clk 0:02:08]} 23. Rd8 {[%clk 0:01:39]}  Rxd8 {[%clk 0:01:59]} 24. Bxd8 {[%clk 0:01:40]}  Bf5 {[%clk 0:01:47]} 25. Be7 {[%clk 0:01:22]}  Nd3+ {[%clk 0:01:45]} 26. Kd2 {[%clk 0:01:22]}  Nxf2 {[%clk 0:01:44]} 27. Bxa3 {[%clk 0:01:17]}  Ne4+ {[%clk 0:01:42]} 28. Nxe4 {[%clk 0:01:18]}  Bxe4 {[%clk 0:01:42]} 29. g3 {[%clk 0:01:07]}  f6 {[%clk 0:01:41]} 30. Bc5 {[%clk 0:01:06]}  Kf7 {[%clk 0:01:41]} 31. a4 {[%clk 0:01:02]}  Ke8 {[%clk 0:01:39]} 32. a5 {[%clk 0:01:01]}  Kd7 {[%clk 0:01:39]} 33. Ke3 {[%clk 0:01:02]}  Bc2 {[%clk 0:01:39]} 34. b4 {[%clk 0:01:02]}  Kc8 {[%clk 0:01:39]} 35. Bd6 {[%clk 0:00:57]}  Bb3 {[%clk 0:01:32]} 36. Bf8 {[%clk 0:00:55]}  g6 {[%clk 0:01:31]} 37. Bg7 {[%clk 0:00:56]}  f5 {[%clk 0:01:31]} 38. Kf4 {[%clk 0:00:56]}  Bc4 {[%clk 0:01:31]} 39. Bd4 {[%clk 0:00:56]}  Kd7 {[%clk 0:01:30]} 40. Kg5 {[%clk 0:00:55]}  Ke6 {[%clk 0:01:29]} 41. Kh6 {[%clk 0:00:55]}  Kd5 {[%clk 0:01:29]} 42. Bc5 {[%clk 0:00:52]}  Ke4 {[%clk 0:01:28]} 43. Kxh7 {[%clk 0:00:48]}  g5 {[%clk 0:01:29]} 44. h4 {[%clk 0:00:42]}  f4 {[%clk 0:01:24]} 45. hxg5 {[%clk 0:00:40]}  fxg3 {[%clk 0:01:23]} 46. g6 {[%clk 0:00:39]}  Kd3 {[%clk 0:01:22]} 47. g7 {[%clk 0:00:32]}  g2 {[%clk 0:01:22]} 48. g8=Q {[%clk 0:00:29]}  Kc3 {[%clk 0:01:21]} 49. Qxg2 {[%clk 0:00:25]}  Kb3 {[%clk 0:01:20]} 50. Qf3+ {[%clk 0:00:22]}  Ka4 {[%clk 0:01:18]} 51. Qc3 {[%clk 0:00:20]}  Bb5 {[%clk 0:01:15]} 52. Qb2 {[%clk 0:00:18]}  Bc4 {[%clk 0:01:11]} 53. Qc2+ {[%clk 0:00:18]}  Kb5 {[%clk 0:01:11]} 54. Qxc4+ {[%clk 0:00:17]}  Kxc4 {[%clk 0:01:11]} 55. a6 {[%clk 0:00:17]} 1-0

[Event "January 9 Early 2024"]
[Site "https://www.chess.com"]
[Date "2024.01.11"]
[Round "11"]
[White "Herman, Matthew"]
[Black "Cuenca Jimenez, Jose Fernando"]
[Result "0-1"]
[Board "84"]
[TimeControl "180+1"]
[WhiteFideId "2028964"]
[BlackFideId "2255570"]
[WhiteElo "2511"]
[BlackElo "2685"]
[WhiteTeam "USA"]
[BlackTeam "ESP"]
[WhiteClock "0:00:02"]
[BlackClock "0:01:01"]

1. e4 {[%clk 0:03:00]}  d6 {[%clk 0:02:56]} 2. d4 {[%clk 0:03:00]}  Nf6 {[%clk 0:02:56]} 3. Nc3 {[%clk 0:03:01]}  e5 {[%clk 0:02:57]} 4. Nf3 {[%clk 0:03:01]}  Nbd7 {[%clk 0:02:57]} 5. Bc4 {[%clk 0:03:01]}  Be7 {[%clk 0:02:57]} 6. O-O {[%clk 0:03:01]}  O-O {[%clk 0:02:58]} 7. Re1 {[%clk 0:03:02]}  c6 {[%clk 0:02:58]} 8. a4 {[%clk 0:03:03]}  b6 {[%clk 0:02:59]} 9. b3 {[%clk 0:03:02]}  Bb7 {[%clk 0:02:58]} 10. Bd3 {[%clk 0:02:59]}  Re8 {[%clk 0:02:56]} 11. Ne2 {[%clk 0:02:59]}  a6 {[%clk 0:02:56]} 12. Ng3 {[%clk 0:02:59]}  Bf8 {[%clk 0:02:56]} 13. Bb2 {[%clk 0:02:51]}  g6 {[%clk 0:02:56]} 14. c4 {[%clk 0:02:46]}  c5 {[%clk 0:02:55]} 15. d5 {[%clk 0:02:39]}  Bh6 {[%clk 0:02:54]} 16. Bc1 {[%clk 0:02:07]}  Bxc1 {[%clk 0:02:54]} 17. Qxc1 {[%clk 0:02:08]}  a5 {[%clk 0:02:40]} 18. h3 {[%clk 0:01:55]}  Qe7 {[%clk 0:02:39]} 19. Nd2 {[%clk 0:01:36]}  h5 {[%clk 0:02:33]} 20. Nf3 {[%clk 0:01:36]}  Nh7 {[%clk 0:02:33]} 21. Kh2 {[%clk 0:01:09]}  Bc8 {[%clk 0:02:29]} 22. Rg1 {[%clk 0:01:03]}  Ndf6 {[%clk 0:02:27]} 23. Qd2 {[%clk 0:00:54]}  h4 {[%clk 0:02:27]} 24. Ne2 {[%clk 0:00:49]}  Nh5 {[%clk 0:02:28]} 25. g3 {[%clk 0:00:36]}  Qf6 {[%clk 0:02:01]} 26. Qe3 {[%clk 0:00:36]}  hxg3+ {[%clk 0:01:50]} 27. fxg3 {[%clk 0:00:37]}  Qg7 {[%clk 0:01:51]} 28. g4 {[%clk 0:00:31]}  N5f6 {[%clk 0:01:47]} 29. Raf1 {[%clk 0:00:26]}  Bd7 {[%clk 0:01:45]} 30. Rg3 {[%clk 0:00:27]}  Rf8 {[%clk 0:01:44]} 31. Kg1 {[%clk 0:00:24]}  Kh8 {[%clk 0:01:37]} 32. Rg2 {[%clk 0:00:25]}  Ng8 {[%clk 0:01:37]} 33. Ng3 {[%clk 0:00:23]}  Qf6 {[%clk 0:01:28]} 34. Kh2 {[%clk 0:00:12]}  Qf4 {[%clk 0:01:28]} 35. Qxf4 {[%clk 0:00:11]}  exf4 {[%clk 0:01:29]} 36. Ne2 {[%clk 0:00:11]}  g5 {[%clk 0:01:30]} 37. e5 {[%clk 0:00:10]}  dxe5 {[%clk 0:01:18]} 38. Bxh7 {[%clk 0:00:08]}  Kxh7 {[%clk 0:01:17]} 39. Nxe5 {[%clk 0:00:07]}  Be8 {[%clk 0:01:16]} 40. h4 {[%clk 0:00:06]}  f6 {[%clk 0:01:16]} 41. Nf3 {[%clk 0:00:06]}  Kh6 {[%clk 0:01:09]} 42. Rh1 {[%clk 0:00:05]}  Kg6 {[%clk 0:01:02]} 43. Kg1 {[%clk 0:00:04]}  Nh6 {[%clk 0:01:02]} 44. hxg5 {[%clk 0:00:03]}  fxg5 {[%clk 0:01:03]} 45. Rh5 {[%clk 0:00:04]}  Nf7 {[%clk 0:01:04]} 46. Nc3 {[%clk 0:00:02]}  Bd7 {[%clk 0:01:01]} 0-1

[Event "January 9 Early 2024"]
[Site "https://www.chess.com"]
[Date "2024.01.11"]
[Round "11"]
[White "Hrebenshchykova, Yelyzaveta"]
[Black "Skurikhin, Dmitrij"]
[Result "1-0"]
[Board "85"]
[TimeControl "180+1"]
[WhiteFideId "14159899"]
[BlackFideId "4161297"]
[WhiteElo "2493"]
[BlackElo "2217"]
[WhiteTeam "UKR"]
[BlackTeam "RUS"]
[WhiteClock "0:00:17"]
[BlackClock "0:00:16"]

1. e4 {[%clk 0:03:00]}  c6 {[%clk 0:02:59]} 2. d4 {[%clk 0:03:00]}  d5 {[%clk 0:02:57]} 3. e5 {[%clk 0:03:00]}  c5 {[%clk 0:02:56]} 4. dxc5 {[%clk 0:02:59]}  Nc6 {[%clk 0:02:55]} 5. f4 {[%clk 0:02:48]}  Bf5 {[%clk 0:02:52]} 6. c3 {[%clk 0:02:43]}  e6 {[%clk 0:02:52]} 7. Be3 {[%clk 0:02:40]}  g5 {[%clk 0:02:50]} 8. fxg5 {[%clk 0:02:29]}  Bg7 {[%clk 0:02:49]} 9. Nf3 {[%clk 0:02:29]}  h6 {[%clk 0:02:46]} 10. Bb5 {[%clk 0:02:03]}  hxg5 {[%clk 0:02:43]} 11. Bxg5 {[%clk 0:02:03]}  Ne7 {[%clk 0:02:40]} 12. O-O {[%clk 0:02:00]}  Qa5 {[%clk 0:02:35]} 13. a4 {[%clk 0:01:57]}  O-O-O {[%clk 0:02:27]} 14. b4 {[%clk 0:01:46]}  Qc7 {[%clk 0:02:27]} 15. Bxc6 {[%clk 0:01:46]}  Nxc6 {[%clk 0:02:13]} 16. Bxd8 {[%clk 0:01:45]}  Kxd8 {[%clk 0:02:13]} 17. Nbd2 {[%clk 0:01:37]}  Nxe5 {[%clk 0:02:13]} 18. Qb3 {[%clk 0:01:31]}  Ng4 {[%clk 0:01:26]} 19. c4 {[%clk 0:00:50]}  Bd4+ {[%clk 0:01:23]} 20. Rf2 {[%clk 0:00:42]}  Bxf2+ {[%clk 0:01:21]} 21. Kf1 {[%clk 0:00:42]}  Be3 {[%clk 0:01:11]} 22. cxd5 {[%clk 0:00:39]}  Nxh2+ {[%clk 0:01:07]} 23. Ke2 {[%clk 0:00:32]}  Nxf3 {[%clk 0:01:05]} 24. Nxf3 {[%clk 0:00:31]}  Bf4 {[%clk 0:01:03]} 25. Rd1 {[%clk 0:00:26]}  Kc8 {[%clk 0:01:00]} 26. d6 {[%clk 0:00:24]}  Qc6 {[%clk 0:00:58]} 27. d7+ {[%clk 0:00:19]}  Kd8 {[%clk 0:00:56]} 28. b5 {[%clk 0:00:19]}  Qe4+ {[%clk 0:00:55]} 29. Kf2 {[%clk 0:00:20]}  Bg4 {[%clk 0:00:22]} 30. Qc3 {[%clk 0:00:18]}  Rg8 {[%clk 0:00:19]} 31. Qf6+ {[%clk 0:00:16]}  Kc7 {[%clk 0:00:16]} 32. d8=Q+ {[%clk 0:00:16]}  Rxd8 {[%clk 0:00:16]} 33. Qxd8# {[%clk 0:00:17]} 1-0